bitfinex/quotes_BTCUSD_20241001
["timestamp","ask_amount","ask_price","bid_price","bid_amount"]
[1727768977662,0.0851279,64161.0,64160.0,0.467579]
[1727768980119,0.0851279,64161.0,64160.0,0.47848005]
[1727768980618,0.10850387,64161.0,64160.0,0.47848005]
[1727768980832,0.0851478,64161.0,64160.0,0.47848005]
[1727768981050,0.015,64161.0,64160.0,0.47848005]
[1727768981519,0.30294055,64161.0,64160.0,0.47848005]
[1727768983701,0.20940899,64161.0,64160.0,0.47848005]
[1727768984600,0.32632344,64161.0,64160.0,0.47848005]
[1727768984806,0.350755,64161.0,64160.0,0.47848005]
[1727768985710,0.23384055,64161.0,64160.0,0.47848005]
[1727768986148,0.20940899,64161.0,64160.0,0.47848005]
[1727768986365,0.20940899,64161.0,64160.0,0.16676105]
[1727768986816,0.20940899,64161.0,64160.0,0.28615337]
[1727768987241,0.20940899,64161.0,64160.0,0.13029337]
[1727768988357,0.20940899,64161.0,64160.0,0.16840905]
[1727768989433,0.20940899,64161.0,64160.0,0.01254905]
[1727768989866,0.20940899,64161.0,64160.0,0.16840905]
[1727768990267,0.20940899,64161.0,64160.0,0.01254905]
[1727768990710,0.20940899,64161.0,64160.0,0.001648]
[1727768990928,0.20960207,64161.0,64160.0,0.001648]
[1727768993598,0.47285907,64161.0,64160.0,0.001648]
[1727768993809,0.55265907,64161.0,64160.0,0.001648]
[1727768994016,0.39680207,64161.0,64160.0,0.001648]
[1727768994833,0.55265907,64161.0,64160.0,0.001648]
[1727768996326,0.69303762,64161.0,64160.0,0.001648]
[1727768996972,0.53718062,64161.0,64160.0,0.001648]
[1727768997397,0.56161374,64161.0,64160.0,0.001648]
[1727768998211,0.42123519,64161.0,64160.0,0.001648]
[1727768998423,0.57709219,64161.0,64160.0,0.001648]
[1727768998627,0.71747074,64161.0,64160.0,0.001648]
[1727768998833,0.56161374,64161.0,64160.0,0.001648]
[1727768999051,0.37438988,64161.0,64160.0,0.001648]
[1727768999260,0.34995676,64161.0,64160.0,0.001648]
[1727768999690,0.50581376,64161.0,64160.0,0.001648]
[1727769000440,0.20960207,64161.0,64160.0,0.11939232]
[1727769000670,0.20760207,64161.0,64160.0,0.27525232]
[1727769001072,0.20960207,64161.0,64160.0,0.27525232]
[1727769001294,0.20960207,64161.0,64160.0,0.11939232]
[1727769001510,0.20960207,64161.0,64160.0,0.27525232]
[1727769001713,0.20960207,64161.0,64160.0,0.11939232]
[1727769002820,0.20931353,64161.0,64160.0,0.11939232]
[1727769003666,0.20924027,64161.0,64160.0,0.11939232]
[1727769003870,0.23367214,64161.0,64160.0,0.11939232]
[1727769008304,0.23367214,64161.0,64160.0,0.27525232]
[1727769008511,0.23382907,64161.0,64160.0,0.27525232]
[1727769009158,0.15641588,64161.0,64160.0,0.27525232]
[1727769009592,0.23382907,64161.0,64160.0,0.27525232]
[1727769015860,0.23182907,64161.0,64160.0,0.27525232]
[1727769016081,0.23332907,64161.0,64160.0,0.27525232]
[1727769016304,0.15593492,64161.0,64160.0,0.27525232]
[1727769016517,0.35033212,64161.0,64160.0,0.27525232]
[1727769016718,0.34833212,64161.0,64160.0,0.27525232]
[1727769016922,0.34633212,64161.0,64160.0,0.27525232]
[1727769017227,0.34733212,64161.0,64160.0,0.27525232]
[1727769017661,0.34533212,64161.0,64160.0,0.27525232]
[1727769018076,0.34533212,64161.0,64160.0,0.27625232]
[1727769018281,0.34433212,64161.0,64160.0,0.27625232]
[1727769018489,0.34533212,64161.0,64160.0,0.27725232]
[1727769018903,0.34633212,64161.0,64160.0,0.27825232]
[1727769020254,0.22932907,64161.0,64160.0,0.27825232]
[1727769021323,0.34635517,64161.0,64160.0,0.27825232]
[1727769021547,0.22932907,64161.0,64160.0,0.27825232]
[1727769021993,0.23132907,64161.0,64160.0,0.27825232]
[1727769022224,0.15395842,64161.0,64160.0,0.27825232]
[1727769022722,0.34859991,64161.0,64160.0,0.27825232]
[1727769023141,0.34859978,64161.0,64160.0,0.27825232]
[1727769023786,0.34659978,64161.0,64160.0,0.27825232]
[1727769025072,0.34859978,64161.0,64160.0,0.27825232]
[1727769026320,0.34859978,64161.0,64160.0,0.160508]
[1727769026536,0.23157291,64161.0,64160.0,0.27825232]
[1727769027162,0.20514104,64161.0,64160.0,0.27825232]
[1727769027602,0.20415958,64161.0,64160.0,0.27625232]
[1727769027811,0.20415958,64161.0,64160.0,0.27725232]
[1727769028246,0.20315958,64161.0,64160.0,0.27625232]
[1727769028493,0.20315958,64161.0,64160.0,0.27725232]
[1727769028763,0.20515958,64161.0,64160.0,0.27725232]
[1727769028975,0.20515958,64161.0,64160.0,0.27625232]
[1727769029190,0.20515958,64161.0,64160.0,0.27725232]
[1727769030090,0.20315958,64161.0,64160.0,0.27725232]
[1727769031213,0.32018143,64161.0,64160.0,0.27725232]
[1727769031433,0.34461322,64161.0,64160.0,0.27725232]
[1727769032281,0.34466592,64161.0,64160.0,0.27725232]
[1727769033977,0.34459375,64161.0,64160.0,0.27725232]
[1727769034193,0.22756946,64161.0,64160.0,0.27725232]
[1727769034602,0.20313767,64161.0,64160.0,0.27725232]
[1727769035378,0.20396167,64161.0,64160.0,0.27725232]
[1727769037004,0.20389659,64161.0,64160.0,0.27625232]
[1727769037238,0.20389659,64161.0,64160.0,0.27525232]
[1727769037455,0.20389659,64161.0,64160.0,0.27625232]
[1727769037695,0.20389659,64161.0,64160.0,0.27725232]
[1727769038918,0.2283283,64161.0,64160.0,0.27725232]
[1727769041543,0.2303283,64161.0,64160.0,0.27725232]
[1727769042210,0.34728919,64161.0,64160.0,0.27725232]
[1727769042825,0.2303283,64161.0,64160.0,0.27725232]
[1727769043049,0.2303283,64161.0,64160.0,0.159508]
[1727769044477,0.20589659,64161.0,64160.0,0.159508]
[1727769044690,0.20389659,64161.0,64160.0,0.159508]
[1727769045535,0.20589659,64161.0,64160.0,0.159508]
[1727769046555,0.20550102,64161.0,64160.0,0.158508]
[1727769046706,0.20550102,64161.0,64160.0,0.157508]
[1727769047313,0.20550102,64161.0,64160.0,0.158508]
[1727769047918,0.20550102,64161.0,64160.0,0.159508]
[1727769048120,0.20550102,64161.0,64160.0,0.003648]
[1727769048822,0.22993339,64161.0,64160.0,0.003648]
[1727769049281,0.20550102,64161.0,64160.0,0.003648]
[1727769052101,0.22993335,64161.0,64160.0,0.003648]
[1727769054984,0.20550102,64161.0,64160.0,0.003648]
[1727769056100,0.20550102,64161.0,64160.0,0.001648]
[1727769056318,0.20546535,64161.0,64160.0,0.001648]
[1727769060720,0.011324,64161.0,64160.0,0.001648]
[1727769060960,0.20545885,64161.0,64160.0,0.001648]
[1727769061199,0.36131585,64161.0,64160.0,0.001648]
[1727769061436,0.20545885,64161.0,64160.0,0.001648]
[1727769062140,0.22989121,64161.0,64160.0,0.001648]
[1727769064035,0.38574821,64161.0,64160.0,0.001648]
[1727769064533,0.38561569,64161.0,64160.0,0.001648]
[1727769064999,0.20532633,64161.0,64160.0,0.001648]
[1727769065700,0.36118333,64161.0,64160.0,0.001648]
[1727769067054,0.36518333,64161.0,64160.0,0.001648]
[1727769067993,0.36818333,64161.0,64160.0,0.001648]
[1727769068662,0.39261608,64161.0,64160.0,0.001648]
[1727769068898,0.66517388,64161.0,64160.0,0.001648]
[1727769069153,0.95813113,64161.0,64160.0,0.001648]
[1727769069376,1.22845989,64161.0,64160.0,0.001648]
[1727769072116,1.25289381,64161.0,64160.0,0.001648]
[1727769076171,1.05649381,64161.0,64160.0,0.001648]
[1727769076595,1.03205989,64161.0,64160.0,0.001648]
[1727769077076,0.60534309,64161.0,64160.0,0.001648]
[1727769077732,0.76120009,64161.0,64160.0,0.001648]
[1727769082550,0.90152817,64161.0,64160.0,0.001648]
[1727769082984,1.17209521,64161.0,64160.0,0.001648]
[1727769083416,1.17186347,64161.0,64160.0,0.001648]
[1727769084598,1.03154272,64161.0,64160.0,0.001648]
[1727769084814,1.05597635,64161.0,64160.0,0.001648]
[1727769085038,1.03154272,64161.0,64160.0,0.001648]
[1727769089212,1.05597641,64161.0,64160.0,0.001648]
[1727769094043,0.86272525,64161.0,64160.0,0.001648]
[1727769094276,1.05598436,64161.0,64160.0,0.001648]
[1727769094496,1.16908436,64161.0,64160.0,0.001648]
[1727769094952,1.14465067,64161.0,64160.0,0.001648]
[1727769098365,1.14465067,64161.0,64160.0,0.004371]
[1727769098578,1.16908469,64161.0,64160.0,0.004371]
[1727769099238,1.14465067,64161.0,64160.0,0.004371]
[1727769102142,1.16908471,64161.0,64160.0,0.004371]
[1727769102566,1.16894425,64161.0,64160.0,0.004371]
[1727769104977,1.14451021,64161.0,64160.0,0.004371]
[1727769106332,1.03141021,64161.0,64160.0,0.004371]
[1727769107565,0.76094942,64161.0,64160.0,0.004371]
[1727769107787,1.0314583,64161.0,64160.0,0.004371]
[1727769108443,0.8756013,64161.0,64160.0,0.004371]
[1727769108687,0.44663462,64161.0,64160.0,0.110071]
[1727769108904,0.44663462,64161.0,64160.0,0.343831]
[1727769109175,0.56366526,64161.0,64160.0,0.343831]
[1727769109427,0.56566526,64161.0,64160.0,0.343831]
[1727769109655,0.54224973,64161.0,64160.0,0.343831]
[1727769109887,0.43963462,64161.0,64160.0,0.343831]
[1727769110115,0.55966526,64161.0,64160.0,0.343831]
[1727769110577,0.44363462,64161.0,64160.0,0.343831]
[1727769110792,0.43963462,64161.0,64160.0,0.343831]
[1727769111010,0.44163462,64161.0,64160.0,0.345831]
[1727769111456,0.53322917,64161.0,64160.0,0.345831]
[1727769112798,0.55766075,64161.0,64160.0,0.345831]
[1727769113515,0.4640662,64161.0,64160.0,0.345831]
[1727769114456,0.27084558,64161.0,64160.0,0.345831]
[1727769115402,0.31657746,64161.0,64160.0,0.345831]
[1727769116092,0.31857746,64161.0,64160.0,0.345831]
[1727769116787,0.31857028,64161.0,64160.0,0.345831]
[1727769120087,0.248414,64161.0,64160.0,0.345831]
[1727769120543,0.246414,64161.0,64160.0,0.345831]
[1727769120763,0.248414,64161.0,64160.0,0.345831]
[1727769121699,0.246414,64161.0,64160.0,0.345831]
[1727769122461,0.31655357,64161.0,64160.0,0.345831]
[1727769123186,0.246414,64161.0,64160.0,0.345831]
[1727769123417,0.31655357,64161.0,64160.0,0.345831]
[1727769123658,0.246414,64161.0,64160.0,0.345831]
[1727769123905,0.2931701,64161.0,64160.0,0.345831]
[1727769124140,0.246414,64161.0,64160.0,0.345831]
[1727769124385,0.29316857,64161.0,64160.0,0.345831]
[1727769129331,0.248414,64161.0,64160.0,0.38567532]
[1727769129581,0.2951587,64161.0,64160.0,0.38567532]
[1727769129835,0.248414,64161.0,64160.0,0.38567532]
[1727769130597,0.29515795,64161.0,64160.0,0.38567532]
[1727769133805,0.248414,64161.0,64160.0,0.27997532]
[1727769134773,0.248414,64161.0,64160.0,0.27797532]
[1727769136343,0.248414,64161.0,64160.0,0.27897532]
[1727769137270,0.248414,64161.0,64160.0,0.27997532]
[1727769137494,0.248414,64161.0,64160.0,0.006371]
[1727769137764,0.86680294,64161.0,64160.0,0.006371]
[1727769138011,0.98365958,64161.0,64160.0,0.006371]
[1727769138239,0.98365958,64161.0,64160.0,0.005371]
[1727769138484,0.71640258,64161.0,64160.0,0.005371]
[1727769138957,0.71540258,64161.0,64160.0,0.005371]
[1727769139195,0.71640258,64161.0,64160.0,0.004371]
[1727769139428,0.71740258,64161.0,64160.0,0.004371]
[1727769141758,0.74183573,64161.0,64160.0,0.004371]
[1727769141977,0.58537793,64161.0,64160.0,0.004371]
[1727769142194,0.58537793,64161.0,64160.0,0.160231]
[1727769142660,0.46852129,64161.0,64160.0,0.160231]
[1727769142884,0.58537793,64161.0,64160.0,0.160231]
[1727769143984,0.58537793,64161.0,64160.0,0.004371]
[1727769144663,0.58537793,64161.0,64160.0,0.160231]
[1727769145026,0.56094478,64161.0,64160.0,0.160231]
[1727769146304,0.56094478,64161.0,64160.0,0.004371]
[1727769146528,0.44408814,64161.0,64160.0,0.004371]
[1727769148344,0.55218814,64161.0,64160.0,0.004371]
[1727769148815,0.57662114,64161.0,64160.0,0.004371]
[1727769149030,0.44408814,64161.0,64160.0,0.004371]
[1727769152270,0.46852116,64161.0,64160.0,0.004371]
[1727769153629,0.46865751,64161.0,64160.0,0.004371]
[1727769154287,0.60887569,64161.0,64160.0,0.004371]
[1727769154727,0.46845273,64161.0,64160.0,0.004371]
[1727769155189,0.60888285,64161.0,64160.0,0.004371]
[1727769155635,0.58444983,64161.0,64160.0,0.004371]
[1727769156059,0.44401971,64161.0,64160.0,0.004371]
[1727769158547,0.44401971,64161.0,64160.0,0.160231]
[1727769158548,0.4442955,64161.0,64160.0,0.160231]
[1727769159191,0.46872801,64161.0,64160.0,0.160231]
[1727769159833,0.4442955,64161.0,64160.0,0.160231]
[1727769160998,0.4442955,64161.0,64160.0,0.270931]
[1727769161434,0.4422955,64161.0,64160.0,0.270931]
[1727769162311,0.559314,64161.0,64160.0,0.270931]
[1727769162742,0.46672731,64161.0,64160.0,0.270931]
[1727769162947,0.46872731,64161.0,64160.0,0.270931]
[1727769163159,0.46889996,64161.0,64160.0,0.270931]
[1727769163388,0.58491928,64161.0,64160.0,0.270931]
[1727769163808,0.58391989,64161.0,64160.0,0.270931]
[1727769164292,0.46689996,64161.0,64160.0,0.161231]
[1727769164507,0.46689996,64161.0,64160.0,0.162231]
[1727769165914,0.44246815,64161.0,64160.0,0.162231]
[1727769167967,0.44233786,64161.0,64160.0,0.162231]
[1727769169341,0.44233786,64161.0,64160.0,0.161231]
[1727769169800,0.44233786,64161.0,64160.0,0.162231]
[1727769170253,0.44233786,64161.0,64160.0,0.161231]
[1727769170464,0.44233786,64161.0,64160.0,0.162231]
[1727769170726,0.44233786,64161.0,64160.0,0.006371]
[1727769172003,0.44233786,64161.0,64160.0,0.162231]
[1727769172234,0.46676993,64161.0,64160.0,0.006371]
[1727769172705,0.27284607,64161.0,64160.0,0.006371]
[1727769172933,0.466849,64161.0,64160.0,0.006371]
[1727769175220,0.466849,64161.0,64160.0,0.005371]
[1727769175912,0.44241693,64161.0,64160.0,0.006371]
[1727769177701,0.44244971,64161.0,64160.0,0.006371]
[1727769181817,0.44244971,64161.0,64160.0,0.005371]
[1727769182053,0.44244971,64161.0,64160.0,0.004371]
[1727769182310,0.47088182,64161.0,64160.0,0.004371]
[1727769182785,0.46888182,64161.0,64160.0,0.004371]
[1727769183238,0.47088182,64161.0,64160.0,0.004371]
[1727769183522,0.61135164,64161.0,64160.0,0.004371]
[1727769183757,0.47088182,64161.0,64160.0,0.004371]
[1727769184240,0.6113824,64161.0,64160.0,0.004371]
[1727769184667,0.47088182,64161.0,64160.0,0.004371]
[1727769185798,0.47088629,64161.0,64160.0,0.004371]
[1727769186029,0.44645418,64161.0,64160.0,0.160231]
[1727769186906,0.44645418,64161.0,64160.0,0.004371]
[1727769187123,0.44645418,64161.0,64160.0,0.160231]
[1727769187571,0.44645418,64161.0,64160.0,0.004371]
[1727769192003,0.44645418,64161.0,64160.0,0.160231]
[1727769192242,0.47088656,64161.0,64160.0,0.160231]
[1727769195733,0.47088656,64161.0,64160.0,0.27797532]
[1727769195870,0.44645418,64161.0,64160.0,0.27797532]
[1727769199605,0.4708864,64161.0,64160.0,0.27797532]
[1727769200283,0.44645418,64161.0,64160.0,0.27797532]
[1727769200712,0.44645418,64161.0,64160.0,0.160231]
[1727769201568,0.58695018,64161.0,64160.0,0.160231]
[1727769203244,0.61138242,64161.0,64160.0,0.160231]
[1727769203456,0.47088642,64161.0,64160.0,0.004371]
[1727769204510,0.47088642,64161.0,64160.0,0.160231]
[1727769204728,0.61140901,64161.0,64160.0,0.160231]
[1727769205147,0.27684624,64161.0,64160.0,0.160231]
[1727769205362,0.4708161,64161.0,64160.0,0.160231]
[1727769205771,0.44638386,64161.0,64160.0,0.160231]
[1727769206476,0.58690502,64161.0,64160.0,0.160231]
[1727769207155,0.44638386,64161.0,64160.0,0.160231]
[1727769209097,0.58690399,64161.0,64160.0,0.160231]
[1727769209330,0.44638386,64161.0,64160.0,0.160231]
[1727769210867,0.58691863,64161.0,64160.0,0.160231]
[1727769212012,0.61135085,64161.0,64160.0,0.160231]
[1727769212254,0.47081608,64161.0,64160.0,0.160231]
[1727769212462,0.61135085,64161.0,64160.0,0.160231]
[1727769214327,0.61139715,64161.0,64160.0,0.160231]
[1727769214781,0.47086534,64161.0,64160.0,0.160231]
[1727769215025,0.61139715,64161.0,64160.0,0.160231]
[1727769215919,0.58696493,64161.0,64160.0,0.160231]
[1727769219365,0.44643312,64161.0,64160.0,0.160231]
[1727769219583,0.47086535,64161.0,64160.0,0.160231]
[1727769220039,0.5870258,64161.0,64160.0,0.160231]
[1727769220258,0.44649146,64161.0,64160.0,0.160231]
[1727769223193,0.47092363,64161.0,64160.0,0.160231]
[1727769225692,0.47092363,64161.0,64160.0,0.004371]
[1727769225936,0.7434836,64161.0,64160.0,0.004371]
[1727769226158,0.60294926,64161.0,64160.0,0.004371]
[1727769226616,0.75880626,64161.0,64160.0,0.004371]
[1727769229657,0.78282489,64161.0,64160.0,0.004371]
[1727769230332,0.75839115,64161.0,64160.0,0.004371]
[1727769233305,0.78282475,64161.0,64160.0,0.004371]
[1727769235131,1.24210163,64161.0,64160.0,0.004371]
[1727769235369,1.24910163,64161.0,64160.0,0.004371]
[1727769235610,1.51822892,64161.0,64160.0,0.004371]
[1727769235849,0.377877,64153.0,64152.0,0.0084552]
[1727769236065,1.21734187,64153.0,64152.0,0.0084552]
[1727769236279,1.48646916,64153.0,64152.0,0.0084552]
[1727769236495,1.35395876,64153.0,64152.0,0.0084552]
[1727769236714,1.45595876,64153.0,64152.0,0.0084552]
[1727769237175,1.47895876,64153.0,64152.0,0.0084552]
[1727769237405,1.46795876,64153.0,64152.0,0.0084552]
[1727769237640,1.45395876,64153.0,64152.0,0.0084552]
[1727769237893,1.58177184,64153.0,64152.0,0.0084552]
[1727769238117,1.59577184,64153.0,64152.0,0.0084552]
[1727769238344,0.0275,64152.0,64151.0,0.00059561]
[1727769238564,1.35201644,64152.0,64151.0,0.00059561]
[1727769238779,1.50846322,64152.0,64151.0,0.00059561]
[1727769239015,1.53300013,64152.0,64151.0,0.00059561]
[1727769239918,1.54700013,64152.0,64151.0,0.00059561]
[1727769240153,1.52255977,64152.0,64151.0,0.00059561]
[1727769240852,1.36411299,64152.0,64151.0,0.00059561]
[1727769241360,1.37811299,64152.0,64151.0,0.00059561]
[1727769243203,1.40255273,64152.0,64151.0,0.00059561]
[1727769245988,0.166389,64148.0,64147.0,0.001648]
[1727769246206,0.85363938,64148.0,64147.0,0.001648]
[1727769247099,0.87807939,64148.0,64147.0,0.001648]
[1727769247367,0.89107939,64148.0,64147.0,0.001648]
[1727769247588,0.90507939,64148.0,64147.0,0.001648]
[1727769248019,0.90486458,64148.0,64147.0,0.001648]
[1727769248886,1.0226089,64148.0,64147.0,0.001648]
[1727769250256,1.41583361,64148.0,64147.0,0.001648]
[1727769250487,1.65117035,64148.0,64147.0,0.001648]
[1727769252296,0.475913,64138.0,64137.0,0.001648]
[1727769252545,1.17796322,64138.0,64137.0,0.001648]
[1727769252979,1.35741,64138.0,64137.0,0.001648]
[1727769253701,1.39585635,64138.0,64137.0,0.001648]
[1727769253915,1.38185635,64138.0,64137.0,0.001648]
[1727769254369,1.39585635,64138.0,64137.0,0.001648]
[1727769255030,1.39785635,64138.0,64137.0,0.001648]
[1727769255243,1.41185635,64138.0,64137.0,0.001648]
[1727769255490,1.68011439,64138.0,64137.0,0.001648]
[1727769255737,1.66611439,64138.0,64137.0,0.001648]
[1727769255948,0.171442,64126.0,64125.0,0.0524259]
[1727769256199,0.5649898,64126.0,64125.0,0.0524259]
[1727769256430,0.5649898,64126.0,64125.0,0.00259]
[1727769256662,0.58943914,64126.0,64125.0,0.00259]
[1727769257320,0.60043914,64126.0,64125.0,0.00259]
[1727769258386,0.60843914,64126.0,64125.0,0.00259]
[1727769259038,0.5839898,64126.0,64125.0,0.00259]
[1727769260771,0.5789898,64126.0,64125.0,0.00259]
[1727769261239,0.4230478,64126.0,64125.0,0.00259]
[1727769262058,0.44749632,64126.0,64125.0,0.00259]
[1727769262608,0.44749632,64126.0,64125.0,0.12033432]
[1727769262834,0.29103852,64126.0,64125.0,0.27627932]
[1727769263416,0.29103852,64126.0,64125.0,0.12033432]
[1727769264288,0.29103852,64126.0,64125.0,0.00259]
[1727769264289,0.60343832,64126.0,64125.0,0.00259]
[1727769264543,0.93724818,64126.0,64125.0,0.00259]
[1727769264825,0.93637025,64126.0,64125.0,0.00259]
[1727769265022,0.9829342,64126.0,64125.0,0.00259]
[1727769265500,0.9769342,64126.0,64125.0,0.00259]
[1727769265716,0.9799342,64126.0,64125.0,0.00259]
[1727769265942,0.0085,64116.0,64115.0,0.001648]
[1727769266182,0.1669578,64116.0,64115.0,0.001648]
[1727769266638,0.191409,64116.0,64115.0,0.001648]
[1727769267086,0.204409,64116.0,64115.0,0.001738]
[1727769268479,0.191409,64116.0,64115.0,0.001738]
[1727769268705,0.202409,64116.0,64115.0,0.001738]
[1727769268919,0.209409,64116.0,64114.0,0.15154]
[1727769269135,0.002,64115.0,64114.0,0.15154]
[1727769269567,0.006,64115.0,64114.0,0.15154]
[1727769270396,0.015,64115.0,64114.0,0.15154]
[1727769270834,0.0195,64115.0,64114.0,0.22964]
[1727769271053,0.0195,64115.0,64114.0,0.5270561]
[1727769271273,0.0255,64115.0,64114.0,0.5270561]
[1727769275623,0.04995049,64115.0,64114.0,0.5270561]
[1727769276054,0.0255,64115.0,64114.0,0.5270561]
[1727769279711,0.0255,64115.0,64114.0,0.5278811]
[1727769279945,0.02715,64115.0,64114.0,0.5278811]
[1727769280640,0.02515,64115.0,64114.0,0.5278811]
[1727769282215,0.04960024,64115.0,64114.0,0.5278811]
[1727769285361,0.05160024,64115.0,64114.0,0.5278811]
[1727769285855,0.04960024,64115.0,64114.0,0.5278811]
[1727769286038,0.02515,64115.0,64114.0,0.5278811]
[1727769286927,0.02065,64115.0,64114.0,0.5278811]
[1727769287368,0.02515,64115.0,64114.0,0.5278811]
[1727769287596,0.02515,64115.0,64114.0,0.46606587]
[1727769288051,0.01915,64115.0,64114.0,0.46606587]
[1727769288287,0.01015,64115.0,64114.0,0.46606587]
[1727769288536,0.01015,64115.0,64114.0,0.48382508]
[1727769288758,0.01015,64115.0,64114.0,0.50061529]
[1727769288976,0.01015,64115.0,64114.0,0.48285608]
[1727769289217,0.01115,64115.0,64114.0,0.48385608]
[1727769289457,0.01115,64115.0,64114.0,0.46606587]
[1727769289701,0.01115,64115.0,64114.0,0.52780912]
[1727769289947,0.01115,64115.0,64114.0,0.52880912]
[1727769290169,0.01215,64115.0,64114.0,0.54560058]
[1727769290833,0.01115,64115.0,64114.0,0.54560058]
[1727769291072,0.01115,64115.0,64114.0,0.52880912]
[1727769291537,0.01115,64115.0,64114.0,0.53080912]
[1727769291996,0.01115,64115.0,64114.0,0.52880912]
[1727769292214,0.01115,64115.0,64114.0,0.52980912]
[1727769292454,0.01015,64115.0,64114.0,0.52780912]
[1727769292670,0.01115,64115.0,64114.0,0.52780912]
[1727769292902,0.01115,64115.0,64114.0,0.52980912]
[1727769293135,0.01015,64115.0,64114.0,0.52980912]
[1727769293618,0.01115,64115.0,64114.0,0.52980912]
[1727769295321,0.01115,64115.0,64114.0,0.45170912]
[1727769296443,0.05791871,64115.0,64114.0,0.45170912]
[1727769297960,0.01115,64115.0,64114.0,0.45170912]
[1727769298956,0.05795899,64115.0,64114.0,0.45170912]
[1727769299437,0.01115,64115.0,64114.0,0.45170912]
[1727769300583,0.05346132,64115.0,64114.0,0.45170912]
[1727769300822,0.01115,64115.0,64114.0,0.45170912]
[1727769301034,0.01115,64115.0,64114.0,0.4684774]
[1727769302182,0.01115,64115.0,64114.0,0.46846192]
[1727769303375,0.01115,64115.0,64114.0,0.45170912]
[1727769303594,0.01115,64115.0,64114.0,0.272065]
[1727769303820,0.01115,64115.0,64114.0,0.45170912]
[1727769309588,0.01115,64115.0,64114.0,0.38996963]
[1727769310755,0.01115,64115.0,64114.0,0.38396963]
[1727769314562,0.01315,64115.0,64114.0,0.266065]
[1727769314803,0.01315,64115.0,64114.0,0.38396963]
[1727769315027,0.01115,64115.0,64114.0,0.38396963]
[1727769316562,0.05795545,64115.0,64114.0,0.38396963]
[1727769316993,0.05797455,64115.0,64114.0,0.38396963]
[1727769318574,0.01115,64115.0,64114.0,0.38196963]
[1727769318791,0.01015,64115.0,64114.0,0.38196963]
[1727769319036,0.01015,64115.0,64114.0,0.38296963]
[1727769319938,0.03459872,64115.0,64114.0,0.38296963]
[1727769320437,0.01015,64115.0,64114.0,0.38296963]
[1727769323310,0.03459879,64115.0,64114.0,0.38296963]
[1727769324926,0.02609879,64115.0,64114.0,0.38296963]
[1727769325175,0.30732683,64126.0,64125.0,0.155945]
[1727769325407,0.23709,64126.0,64125.0,0.27384963]
[1727769325668,0.23709,64126.0,64125.0,0.54390743]
[1727769325896,0.001648,64131.0,64130.0,0.155933]
[1727769326120,0.005648,64131.0,64130.0,0.27383763]
[1727769326571,0.001648,64131.0,64130.0,0.27383763]
[1727769327283,0.001648,64131.0,64130.0,0.27483763]
[1727769328650,0.002648,64131.0,64130.0,0.28083763]
[1727769328865,0.006648,64131.0,64130.0,0.28483763]
[1727769329079,0.002648,64131.0,64130.0,0.28483763]
[1727769329323,0.006648,64131.0,64130.0,0.28483763]
[1727769329555,0.002648,64131.0,64130.0,0.28483763]
[1727769330274,0.002648,64131.0,64130.0,0.28795579]
[1727769330500,0.002648,64131.0,64130.0,0.46913763]
[1727769349236,0.002648,64131.0,64130.0,0.166933]
[1727769349462,0.002648,64131.0,64130.0,0.28483763]
[1727769351828,0.02708962,64131.0,64130.0,0.28483763]
[1727769352281,0.02708962,64131.0,64130.0,0.47313763]
[1727769359655,0.02708962,64131.0,64130.0,0.39793763]
[1727769364243,0.02708962,64131.0,64130.0,0.41465223]
[1727769366850,0.02708962,64131.0,64130.0,0.39793763]
[1727769367065,0.02708962,64131.0,64130.0,0.41465232]
[1727769370314,0.02708962,64131.0,64130.0,0.39793763]
[1727769370544,0.02708962,64131.0,64130.0,0.41464254]
[1727769373750,0.02708962,64131.0,64130.0,0.41384254]
[1727769373963,0.02708962,64131.0,64130.0,0.41364254]
[1727769374617,0.02708962,64131.0,64130.0,0.41294254]
[1727769374828,0.02708962,64131.0,64130.0,0.41264254]
[1727769375501,0.02708962,64131.0,64130.0,0.41214254]
[1727769375725,0.02708962,64131.0,64130.0,0.41164254]
[1727769376337,0.02708962,64131.0,64130.0,0.41124254]
[1727769376588,0.02708962,64131.0,64130.0,0.41084254]
[1727769377060,0.02708962,64131.0,64130.0,0.41064254]
[1727769377271,0.02708962,64131.0,64130.0,0.41004254]
[1727769377506,0.02708962,64131.0,64130.0,0.40984254]
[1727769378334,0.02708962,64131.0,64130.0,0.40974254]
[1727769378575,0.02708962,64131.0,64130.0,0.40964254]
[1727769380439,0.02708962,64131.0,64130.0,0.39293763]
[1727769380669,0.02708962,64131.0,64130.0,0.40969484]
[1727769381579,0.02708962,64131.0,64130.0,0.40969512]
[1727769381994,0.02708962,64131.0,64130.0,0.29659512]
[1727769382840,0.02208962,64131.0,64130.0,0.29659512]
[1727769383276,0.0085,64135.0,64134.0,0.155923]
[1727769383496,0.0085,64135.0,64134.0,0.29058512]
[1727769384015,0.0045,64135.0,64134.0,0.29058512]
[1727769384205,0.0085,64135.0,64134.0,0.29058512]
[1727769384597,0.0085,64135.0,64134.0,0.29158512]
[1727769384777,0.0085,64135.0,64134.0,0.30590035]
[1727769385876,0.0085,64135.0,64134.0,0.30890035]
[1727769386944,0.0085,64135.0,64134.0,0.30889837]
[1727769387151,0.0085,64135.0,64134.0,0.19099374]
[1727769387364,0.0858,64135.0,64134.0,0.30889837]
[1727769387598,0.18214751,64135.0,64134.0,0.29458512]
[1727769388019,0.11188769,64135.0,64134.0,0.29458512]
[1727769388456,0.18215111,64135.0,64134.0,0.29458512]
[1727769389147,0.17815111,64135.0,64134.0,0.29458512]
[1727769389377,0.18215111,64135.0,64134.0,0.29458512]
[1727769389596,0.15771142,64135.0,64134.0,0.29458512]
[1727769389807,0.087448,64135.0,64134.0,0.29458512]
[1727769390016,0.15770977,64135.0,64134.0,0.29458512]
[1727769390258,0.15770977,64135.0,64134.0,0.159923]
[1727769390461,0.37033818,64135.0,64134.0,0.17668223]
[1727769390675,0.27665842,64135.0,64134.0,0.159923]
[1727769391686,0.37033469,64135.0,64134.0,0.159923]
[1727769392137,0.27665842,64135.0,64134.0,0.159923]
[1727769392587,0.37033477,64135.0,64134.0,0.159923]
[1727769392808,0.39077517,64135.0,64134.0,0.159923]
[1727769393015,0.39477517,64135.0,64134.0,0.159923]
[1727769394317,0.30109882,64135.0,64134.0,0.159923]
[1727769394544,0.30105915,64135.0,64134.0,0.158923]
[1727769394763,0.18213517,64135.0,64134.0,0.158923]
[1727769394979,0.18213552,64135.0,64134.0,0.158923]
[1727769395206,0.18313552,64135.0,64134.0,0.158923]